bitfinex-derivatives/quotes_ETHF0:USTF0_20250524
["timestamp","ask_amount","ask_price","bid_price","bid_amount"]
[1748054792046,17.701,2541.8,2541.7,0.62938001]
[1748054792451,17.701,2541.8,2541.7,1.31028001]
[1748054793151,18.33035,2541.8,2541.7,0.68090001]
[1748054793450,18.33035,2541.8,2541.7,1e-08]
[1748054795359,17.703,2541.8,2541.7,0.62938001]
[1748054796056,18.33236,2541.8,2541.7,1e-08]
[1748054800350,19.64666,2541.8,2541.7,1e-08]
[1748054803148,24.64666,2541.8,2541.7,1e-08]
[1748054804358,19.64666,2541.8,2541.7,1e-08]
[1748054804561,19.64866,2541.8,2541.7,1e-08]
[1748054805958,24.64866,2541.8,2541.7,1e-08]
[1748054807770,19.64866,2541.8,2541.7,1e-08]
[1748054808164,19.64966,2541.8,2541.7,1e-08]
[1748054813273,19.65066,2541.8,2541.7,1e-08]
[1748054816275,16.06436,2541.8,2541.7,1e-08]
[1748054816471,33.77136,2541.8,2541.7,1e-08]
[1748054819980,35.16796,2541.8,2541.7,1e-08]
[1748054820270,15.435,2541.8,2541.7,1e-08]
[1748054820476,40.29128,2542.1,2542.0,0.62931]
[1748054820671,73.43328,2542.1,2542.0,0.62931]
[1748054821072,0.62931,2542.0,2541.9,2.58621]
[1748054821271,0.62931,2542.0,2541.9,1.9569]
[1748054821472,0.62931,2542.0,2541.9,2.58623]
[1748054822980,0.62931,2542.0,2541.9,1.9569]
[1748054823179,1.91871,2542.0,2541.9,1.9569]
[1748054823479,0.62931,2542.0,2541.9,1.9569]
[1748054823673,33.76431,2542.0,2541.9,2.58623]
[1748054825582,40.2913,2542.1,2542.0,0.62931]
[1748054825779,73.4263,2542.1,2542.0,1.97601]
[1748054826079,73.4263,2542.1,2542.0,2.64351]
[1748054826378,73.4263,2542.1,2542.0,2.0142]
[1748054826578,74.7997,2542.1,2542.0,2.0142]
[1748054828181,0.62931,2542.0,2541.9,0.6457]
[1748054828384,2.00271,2542.0,2541.9,0.6457]
[1748054829284,0.62935,2541.8,2541.7,1e-08]
[1748054830080,1.91275,2541.8,2541.7,1e-08]
[1748054832190,35.04575,2541.8,2541.7,1e-08]
[1748054832490,35.04575,2541.8,2541.7,1.28870001]
[1748054834291,1.91275,2541.8,2541.7,1.91808001]
[1748054834494,15.429,2541.8,2541.7,1.91808001]
[1748054834685,33.134,2541.8,2541.7,1.91808001]
[1748054835588,33.76335,2541.8,2541.7,1.91808001]
[1748054835989,33.134,2541.8,2541.7,1.91808001]
[1748054836383,0.62932,2542.0,2541.7,1.28870001]
[1748054836589,33.134,2541.9,2541.8,2.631]
[1748054836796,33.134,2541.9,2541.8,3.26035]
[1748054837687,33.76333,2541.9,2541.8,2.631]
[1748054838589,33.76333,2541.9,2541.8,0.6435]
[1748054838791,35.13453,2541.9,2541.8,0.6435]
[1748054839094,0.62935,2541.8,2541.7,1e-08]
[1748054839390,2.00055,2541.8,2541.7,1e-08]
[1748054840193,2.00055,2541.8,2541.7,0.62938001]
[1748054842396,2.00055,2541.8,2541.7,1e-08]
[1748054843393,2.00055,2541.8,2541.7,0.62938001]
[1748054843594,1.3712,2541.8,2541.7,0.62938001]
[1748054843997,1.3712,2541.8,2541.7,1.99088001]
[1748054844193,0.62935,2541.9,2541.8,0.62935]
[1748054844497,33.133,2541.9,2541.8,1.99085]
[1748054845487,33.76233,2541.9,2541.8,1.99085]
[1748054845692,33.76233,2541.9,2541.8,1.3615]
[1748054845895,0.62935,2541.8,2541.7,0.62937001]
[1748054846095,1.94625,2541.8,2541.7,0.62937001]
[1748054846800,1.3169,2541.8,2541.7,0.62937001]
[1748054846998,1.3169,2541.8,2541.7,2.04167001]
[1748054848801,1.3169,2541.8,2541.7,3.43104817]
[1748054848986,33.133,2541.9,2541.8,0.62935]
[1748054849187,33.133,2541.9,2541.8,2.04165]
[1748054849390,33.76233,2541.9,2541.8,2.04165]
[1748054849593,35.05453,2541.9,2541.8,2.04165]
[1748054851291,34.4252,2541.9,2541.8,2.04165]
[1748054851493,15.428,2541.9,2541.8,2.04165]
[1748054851687,3.2078,2542.3,2542.2,0.62926]
[1748054851993,33.132,2542.3,2542.2,0.62926]
[1748054852193,34.4287,2542.3,2542.2,0.62926]
[1748054853102,16.7247,2542.3,2542.2,0.62926]
[1748054853302,34.4287,2542.3,2542.2,0.62926]
[1748054853896,16.7247,2542.3,2542.2,0.62926]
[1748054854102,33.132,2542.3,2542.2,0.62926]
[1748054854496,33.132,2542.3,2542.2,3.83706]
[1748054854695,15.428,2542.3,2542.2,3.83706]
[1748054854901,33.132,2542.3,2542.2,3.83706]
[1748054855297,18.35866791,2542.7,2542.6,0.62916]
[1748054855501,18.35866791,2542.7,2542.6,3.83696]
[1748054855704,0.65466791,2542.7,2542.6,3.83696]
[1748054859704,2.60399791,2542.7,2542.4,1.3747]
[1748054859907,0.6891,2542.6,2542.5,0.62916]
[1748054860107,2.0093,2542.6,2542.5,0.62916]
[1748054861308,15.422,2542.9,2542.8,0.62911]
[1748054861508,16.0907,2543.0,2542.9,0.62908]
[1748054861708,33.7917,2543.0,2542.9,1.90788]
[1748054861909,33.7917,2543.0,2542.9,2.61438]
[1748054862208,35.0952,2543.0,2542.9,2.61438]
[1748054862413,34.4245,2543.0,2542.9,2.61438]
[1748054862716,1.3035,2543.0,2542.9,2.61438]
[1748054862900,17.7,2543.0,2542.9,2.61438]
[1748054864110,19.0035,2543.0,2542.9,2.61438]
[1748054864307,1.3035,2543.0,2542.9,2.61438]
[1748054867314,17.70390354,2543.2,2543.1,0.62903]
[1748054868508,0.62905,2543.1,2542.8,3.2078]
[1748054868716,1.90455,2543.1,2542.8,3.2078]
[1748054868915,1.90455,2543.1,2543.0,0.62906]
[1748054869309,1.2755,2543.1,2543.0,0.62906]
[1748054869506,1.90453,2543.1,2543.0,0.62906]
[1748054869709,1.2755,2543.1,2543.0,0.62906]
[1748054870412,1.2755,2543.1,2542.8,3.2078]
[1748054870717,0.62909,2542.9,2542.5,4.4971]
[1748054870912,1.9551,2542.8,2542.7,0.62911]
[1748054873418,1.2796,2542.8,2542.7,0.62911]
[1748054873619,18.9766,2542.8,2542.7,0.62911]
[1748054873811,17.697,2542.8,2542.7,0.62911]
[1748054875919,19.0217,2542.8,2542.7,0.62911]
[1748054876725,17.697,2542.8,2542.7,0.62911]
[1748054877815,19.0797,2542.8,2542.7,0.62911]
[1748054882425,1.3827,2542.8,2542.7,0.62911]
[1748054882621,15.416,2542.9,2542.8,0.62911]
[1748054882825,16.8008,2542.9,2542.8,3.83691]
[1748054883028,34.4978,2542.9,2542.8,3.83691]
[1748054884330,1.3848,2542.9,2542.8,5.2249227]
[1748054884524,0.00590354,2543.2,2543.1,0.62903]
[1748054884826,0.00590354,2543.2,2543.1,3.83683]
[1748054886634,0.00590354,2543.2,2543.1,6.31207092]
[1748054887645,0.00590354,2543.2,2543.1,11.31207092]
[1748054887940,0.00590354,2543.2,2543.1,12.58827092]
[1748054889145,0.6407,2543.8,2543.7,0.62888]
[1748054889443,2.0271,2544.0,2543.9,0.62883]
[1748054893241,5.2349,2544.0,2543.7,0.00590354]
[1748054893545,0.62886,2543.8,2543.7,0.00590354]
[1748054893745,16.03786,2543.8,2543.7,0.00590354]
[1748054893943,33.101,2543.8,2543.7,0.63478354]
[1748054894844,38.72986,2543.8,2543.7,0.00590354]
[1748054895045,33.101,2543.8,2543.7,0.63478354]
[1748054895443,1.3497,2543.9,2543.8,0.62886]
[1748054895645,34.4507,2543.9,2543.8,0.62886]
[1748054896046,1.3497,2543.9,2543.7,0.00590354]
[1748054896246,34.4507,2543.9,2543.8,0.62886]
[1748054896752,16.7587,2543.9,2543.8,0.62886]
[1748054896951,34.4507,2543.9,2543.8,0.62886]
[1748054897551,1.3497,2543.9,2543.8,0.62886]
[1748054897754,34.4507,2543.9,2543.8,0.62886]
[1748054897945,1.3497,2543.9,2543.8,0.62886]
[1748054898152,19.0417,2543.9,2543.8,0.62886]
[1748054899554,1.3497,2543.9,2543.8,0.62886]
[1748054902153,0.6868,2544.0,2543.9,0.62883]
[1748054904656,0.6868,2544.0,2543.8,0.32076082]
[1748054904657,1.3603,2544.1,2544.0,0.62881]
[1748054905056,0.52987,2544.1,2544.0,0.62881]
[1748054905255,0.47218354,2544.2,2544.1,0.62879]
[1748054905453,15.407,2544.6,2544.5,0.62869]
[1748054905654,33.097,2544.6,2544.5,0.62869]
[1748054908360,35.0749,2544.6,2544.5,0.62869]
[1748054908564,35.7627,2544.6,2544.5,0.62869]
[1748054908757,35.7617,2544.6,2544.5,0.62869]
[1748054908957,35.7607,2544.6,2544.5,0.62869]
[1748054909260,0.00590354,2544.8,2544.3,4.77959]
[1748054909261,17.69490354,2544.8,2544.7,0.62864]
[1748054910964,18.97200354,2544.8,2544.7,0.62864]
[1748054911764,18.97100354,2544.8,2544.7,0.62864]
[1748054912064,1.28300354,2544.8,2544.7,0.62864]
[1748054912264,18.97100354,2544.8,2544.7,0.62864]
[1748054912665,1.28300354,2544.8,2544.7,0.62864]
[1748054912869,3.54e-06,2544.8,2544.7,0.62864]
[1748054913165,3.54e-06,2544.8,2544.7,3.36724]
[1748054914564,3.54e-06,2544.8,2544.7,1.99674]
[1748054915157,3.54e-06,2544.8,2544.7,3.38044]
[1748054916872,3.54e-06,2544.8,2544.7,0.62864]
[1748054918173,3.54e-06,2544.8,2544.7,2.03894]
[1748054928175,0.19923354,2545.0,2544.7,1.4103]
[1748054928473,3.2078,2545.7,2545.6,0.62842]
[1748054929282,0.68690354,2545.9,2545.8,0.62837]
[1748054929480,18.36990354,2545.9,2545.8,0.62837]
[1748054929779,19.06380354,2545.9,2545.8,0.62837]
[1748054930182,1.38080354,2545.9,2545.8,0.62837]
[1748054930380,19.06380354,2545.9,2545.8,0.62837]
[1748054931074,34.48280354,2545.9,2545.8,0.62837]
[1748054931878,39.48280354,2545.9,2545.8,0.62837]
[1748054932676,7.71070354,2545.9,2545.8,0.62837]
[1748054932881,35.80970354,2545.9,2545.8,0.62837]
[1748054935980,18.12770354,2545.9,2545.8,0.62837]
[1748054936188,35.80870354,2545.9,2545.8,0.62837]
[1748054937785,40.80870354,2545.9,2545.8,0.62837]
[1748054938388,35.80870354,2545.9,2545.8,0.62837]
[1748054939790,41.43706354,2545.9,2545.8,0.62837]
[1748054939989,40.80870354,2545.9,2545.8,0.62837]
[1748054940389,35.80870354,2545.9,2545.8,0.62837]
[1748054940691,41.43704354,2545.9,2545.8,0.62837]
[1748054940889,40.80870354,2545.9,2545.8,0.62837]
[1748054941386,40.80870354,2545.9,2545.4,0.00590354]
[1748054941588,0.62844,2545.5,2545.4,0.00590354]
[1748054941883,16.04444,2545.5,2545.4,0.00590354]
[1748054942088,21.04444,2545.5,2545.4,0.00590354]
[1748054942480,22.34084,2545.5,2545.4,0.00590354]
[1748054943289,1.2964,2545.5,2545.4,0.63436354]
[1748054943492,33.7445,2545.5,2545.4,0.63436354]
[1748054943994,0.6475,2545.5,2545.4,0.63436354]
[1748054944195,34.4274,2545.6,2545.5,0.62844]
[1748054945690,16.7464,2545.6,2545.5,0.62844]
[1748054945894,34.4274,2545.6,2545.5,0.62844]
[1748054946192,16.7464,2545.6,2545.5,0.62844]
[1748054946488,34.4274,2545.6,2545.5,0.62844]
[1748054946890,34.4274,2545.6,2545.4,1.34810354]
[1748054947089,33.72642,2545.6,2545.5,0.62844]
[1748054947486,33.098,2545.6,2545.5,0.62844]
[1748054952894,33.098,2545.6,2545.4,0.00590354]
[1748054953094,0.62844,2545.5,2545.4,0.00590354]
[1748054957894,18.30944,2545.5,2545.4,0.00590354]
[1748054959198,21.51724,2545.5,2545.4,0.00590354]
[1748054960400,22.92064,2545.5,2545.4,0.00590354]
[1748054964003,0.62864,2544.7,2544.4,1.4496438]
[1748054964199,33.75864,2544.7,2544.4,2.7862438]
[1748054964395,33.75864,2544.7,2544.5,2.01818]
[1748054964592,33.75864,2544.7,2544.5,1.3895]
[1748054964800,33.75864,2544.7,2544.4,1.45554734]
[1748054964996,38.13,2544.7,2544.4,1.45554734]
[1748054965200,3.83649,2544.5,2544.4,1.45554734]
[1748054965601,0.62879,2544.1,2544.0,1.29867273]
[1748054965903,33.131,2544.1,2544.0,1.29867273]
[1748054966297,35.09419,2544.1,2544.0,1.29867273]
[1748054966496,43.30199,2544.1,2544.0,1.29867273]
[1748054966803,0.62884,2543.9,2543.8,1.96559969]
[1748054967197,45.24384,2543.9,2543.8,1.96559969]
[1748054967895,47.27474,2543.9,2543.8,1.96559969]
[1748054969400,0.62896,2543.4,2543.3,3.26616025]
[1748054969609,33.76496,2543.4,2543.3,3.26616025]
[1748054970006,0.62898,2543.3,2543.2,1.3736]
[1748054970210,1.98618,2543.3,2543.2,1.3736]
[1748054978212,33.72998,2543.3,2543.2,2.0026]
[1748054978404,33.72998,2543.3,2543.2,1.3736]
[1748054980410,0.62906,2543.0,2542.9,0.682]
[1748054981917,0.62906,2543.0,2542.9,2.0082]
[1748054982210,0.62906,2543.0,2542.9,2.63728]
[1748054983213,0.62906,2543.0,2542.9,2.0082]
[1748054989015,0.62908,2542.9,2542.8,0.6854]
[1748054989221,16.04108,2542.9,2542.8,0.6854]
[1748054991223,0.62911,2542.8,2542.7,1.3937]
[1748054991627,1.98901,2542.8,2542.7,1.3937]
[1748054992228,1.57285,2542.7,2542.3,0.6857]
[1748054992428,0.62921,2542.4,2542.3,0.6857]
[1748054992629,16.04221,2542.4,2542.3,0.6857]
[1748054995429,16.04221,2542.4,2542.3,2.0037]
[1748054995622,16.04221,2542.4,2542.3,0.6857]
[1748054996023,16.04221,2542.4,2542.3,2.0037]
[1748054997635,33.74021,2542.4,2542.3,2.0037]
[1748055000134,0.62921,2542.4,2542.3,2.0037]
[1748055000434,33.74421,2542.4,2542.3,2.0037]
[1748055000937,0.62921,2542.4,2542.3,2.0037]
[1748055001139,33.74421,2542.4,2542.3,2.0037]
[1748055001631,0.62931,2542.0,2541.9,3.2078]
[1748055001832,0.62933,2541.9,2541.8,2.1336438]
[1748055002233,0.62933,2541.9,2541.8,1.4496438]
[1748055002439,3.83713,2541.9,2541.8,1.4496438]
[1748055002840,4.49883,2541.9,2541.8,1.4496438]
[1748055003032,5.86323,2541.9,2541.8,1.4496438]
[1748055004134,5.2339,2541.9,2541.7,2.17447528]
[1748055004342,0.6294,2541.6,2541.5,2.0395]
[1748055004639,33.7484,2541.6,2541.5,2.0395]
[1748055004845,3.2078,2541.9,2541.5,2.0395]
[1748055005035,33.119,2541.8,2541.6,4.606]
[1748055005334,17.702,2541.8,2541.7,1.91998]
[1748055005536,17.702,2541.8,2541.7,3.3046125]
[1748055005738,17.702,2541.8,2541.7,8.3046125]
[1748055007142,18.33135,2541.8,2541.7,8.3046125]
[1748055007342,18.33135,2541.8,2541.7,7.6752325]
[1748055008141,0.62935,2541.8,2541.7,7.6752325]
[1748055008336,33.74434,2541.9,2541.7,8.3046125]
[1748055008537,33.74434,2541.9,2541.8,1.3323]
[1748055009347,33.115,2541.9,2541.8,1.3323]
[1748055009646,33.74433,2541.9,2541.8,1.3323]
[1748055009942,33.115,2541.9,2541.8,1.3323]
[1748055010144,33.115,2541.9,2541.8,3.3462825]
[1748055010945,33.116,2541.9,2541.8,3.3462825]
[1748055011240,33.74533,2541.9,2541.8,2.7169325]
[1748055011445,33.74533,2541.9,2541.8,1.3846325]
[1748055011743,36.95313,2541.9,2541.8,1.3846325]
[1748055012243,0.6294,2541.6,2541.5,0.6413]
[1748055013343,0.62943,2541.5,2541.4,1.3485]
[1748055013542,16.04243,2541.5,2541.4,1.97795]
[1748055013743,16.04243,2541.5,2541.3,5.9808138]
[1748055014043,16.04243,2541.5,2541.4,1.3485]
[1748055015150,16.04243,2541.5,2541.4,1.97795]
[1748055016350,16.04243,2541.5,2541.4,1.3485]
[1748055017053,16.04243,2541.5,2541.3,3.9017]
[1748055017054,0.62945,2541.4,2541.3,3.9017]
[1748055017250,1.94735,2541.4,2541.3,4.53118]
[1748055017548,1.94735,2541.4,2541.3,5.92838]
[1748055018152,1.94735,2541.4,2541.3,5.2989]
[1748055018649,1.3179,2541.4,2541.3,5.92838]
[1748055018849,1.94735,2541.4,2541.3,5.2989]
[1748055019042,1.3179,2541.4,2541.3,5.2989]
[1748055019241,1.3179,2541.4,2541.3,5.92838]
[1748055019655,1.94735,2541.4,2541.3,5.92838]
[1748055019854,1.3179,2541.4,2541.3,5.92838]
[1748055020248,1.94735,2541.4,2541.3,5.92838]
[1748055020655,1.94735,2541.4,2541.3,5.23448]
[1748055021455,1.3179,2541.4,2541.3,5.23448]
[1748055022158,1.94735,2541.4,2541.3,4.605]
[1748055022551,1.94735,2541.4,2541.3,3.2078]
[1748055023255,1.94735,2541.4,2541.3,3.83728]
[1748055023455,1.94735,2541.4,2541.3,3.2078]
[1748055024153,1.94735,2541.4,2541.3,3.83728]
[1748055024558,1.94735,2541.4,2541.3,3.2078]
[1748055025463,0.62948,2541.3,2541.2,0.6817]
[1748055025761,2.61778,2541.3,2541.2,1.3112]
[1748055026957,2.61778,2541.3,2541.2,0.6817]
[1748055027164,0.6295,2541.2,2541.1,1.3548]
[1748055027366,19.7334,2541.2,2541.1,1.3548]
[1748055027566,19.7334,2541.2,2541.1,1.98433]
[1748055028066,0.62953,2541.1,2541.0,5.21223]
[1748055028363,17.44443,2541.1,2541.0,5.21223]
[1748055028769,16.8149,2541.1,2541.0,5.21223]
[1748055030163,0.6387,2541.3,2541.2,0.6295]
[1748055030362,33.75348,2541.3,2541.2,0.6295]
[1748055030563,0.62951,2541.2,2541.1,2.02462]
[1748055030863,1.91531,2541.2,2541.1,2.02462]
[1748055031360,1.91531,2541.2,2541.1,1.3951]
[1748055031560,1.3896,2541.5,2541.1,1.3951]
[1748055031761,3.2078,2541.6,2541.5,0.62943]
[1748055032071,17.707,2541.6,2541.3,4.78147]
[1748055032268,17.707,2541.6,2541.5,0.62943]
[1748055032964,18.3364,2541.6,2541.5,1.94103]
[1748055033164,19.1183,2541.6,2541.5,1.94103]
[1748055033365,19.7477,2541.6,2541.5,1.3116]
[1748055033563,0.62943,2541.5,2541.4,0.6503]
[1748055033763,2.04073,2541.5,2541.4,0.6503]
[1748055033964,1.4113,2541.5,2541.4,1.27975]
[1748055036270,34.5353,2541.5,2541.4,1.27975]
[1748055037272,0.00590354,2541.7,2541.6,0.6294]
[1748055037468,0.00590354,2541.7,2541.6,3.8372]
[1748055037776,0.00590354,2541.7,2541.6,10.2282]
[1748055038666,0.65466791,2542.3,2542.2,0.62925]
[1748055038862,0.65466791,2542.3,2542.2,3.83705]
[1748055039269,0.65466791,2542.3,2542.2,3.83704]
[1748055040071,0.65466791,2542.3,2542.2,5.22633337]
[1748055040273,18.36066791,2542.4,2542.3,0.62922]
[1748055040470,18.36066791,2542.4,2542.3,1.99412]
[1748055044379,18.35866791,2542.4,2542.3,1.99412]
[1748055044578,0.65466791,2542.4,2542.3,1.99412]
[1748055044772,18.35866791,2542.4,2542.3,1.99412]
[1748055045579,17.704,2542.4,2542.3,1.99412]
[1748055045776,1.38970354,2542.5,2542.4,0.6292]
[1748055045977,0.6552,2542.7,2542.6,0.62915]
[1748055046175,33.11,2542.7,2542.6,3.83695]
[1748055048077,15.41390354,2542.9,2542.8,0.6291]
[1748055048278,33.11590354,2542.9,2542.8,0.6291]
[1748055048780,33.11490354,2542.9,2542.8,1.2744]
[1748055050983,33.11490354,2542.9,2542.6,3.2078]
[1748055051282,0.62913,2542.7,2542.6,3.2078]
[1748055051576,0.62919,2542.5,2542.2,6.56619736]
[1748055052083,17.35601,2542.4,2542.2,3.2078]
[1748055052279,19.0198,2542.3,2542.2,3.83705]
[1748055056684,16.1109,2542.6,2542.5,0.62918]
[1748055056885,17.699,2542.6,2542.5,3.83698]
[1748055058286,17.699,2542.7,2542.5,3.2078]
[1748055058487,17.699,2542.7,2542.6,2.68345]
[1748055062389,0.62915,2542.6,2542.5,3.2078]
[1748055062578,3.40015,2542.6,2542.5,3.2078]
[1748055062891,2.771,2542.6,2542.5,0.62918]
[1748055063083,35.874,2542.6,2542.5,3.83698]
[1748055063284,35.874,2542.6,2542.5,0.62918]
[1748055063485,36.50316,2542.6,2542.4,0.62919]
[1748055063784,35.874,2542.6,2542.3,0.6292]
[1748055063986,36.50317,2542.6,2542.3,0.6292]
[1748055064492,0.62919,2542.5,2542.3,0.6292]
[1748055064692,35.874,2542.6,2542.2,3.2078]
[1748055064693,1.98671,2542.4,2542.2,3.83704]
[1748055065090,1.3575,2542.4,2542.3,0.62923]
[1748055065590,1.98672,2542.4,2542.2,3.83704]
[1748055065791,1.3575,2542.4,2542.3,0.62923]
[1748055066293,34.4605,2542.4,2542.3,0.62923]
[1748055066791,35.0897,2542.4,2542.3,1.38252798]
[1748055066988,34.4605,2542.4,2542.3,2.01175798]
[1748055067789,35.0897,2542.4,2542.3,1.38252798]
[1748055068688,35.0897,2542.4,2542.3,2.01175798]
[1748055068689,34.4605,2542.4,2542.3,2.01175798]
[1748055069987,1.3575,2542.4,2542.3,2.01175798]
[1748055070193,19.0684,2542.6,2542.5,0.62918]
[1748055070389,19.0684,2542.6,2542.5,3.83698]
[1748055071085,19.0684,2542.6,2542.5,5.21950798]
[1748055071988,19.0137,2542.6,2542.5,5.21950798]
[1748055072286,19.0137,2542.6,2542.5,6.54130798]
[1748055072591,19.0137,2542.6,2542.5,5.21950798]
[1748055075590,19.0137,2542.6,2542.5,6.52870798]
[1748055076893,19.0127,2542.6,2542.5,6.52870798]
[1748055077600,1.3147,2542.6,2542.5,6.52870798]
[1748055077891,19.0127,2542.6,2542.5,6.52870798]
[1748055078292,17.698,2542.6,2542.5,6.52870798]
[1748055078491,16.7629,2542.8,2542.7,0.62913]
[1748055078693,34.4609,2542.8,2542.7,0.62913]
[1748055078993,34.4609,2542.8,2542.7,2.01165798]
[1748055079496,15.40790354,2542.9,2542.8,0.6291]
[1748055079695,33.10590354,2542.9,2542.8,5.9415]
[1748055079895,34.46680354,2542.9,2542.8,5.9415]
[1748055080197,34.46680354,2542.9,2542.8,7.32402798]
[1748055081296,19.06480354,2542.9,2542.8,7.32402798]
[1748055083498,1.36680354,2542.9,2542.8,7.32402798]
[1748055083896,19.06480354,2542.9,2542.8,7.32402798]
[1748055085801,19.69388354,2542.9,2542.8,4.59032798]
[1748055086102,19.06480354,2542.9,2542.8,5.21942798]
[1748055086401,19.69388354,2542.9,2542.8,1.38252798]
[1748055088407,19.69388354,2542.9,2542.6,0.62914]
[1748055088605,1.3421,2542.8,2542.6,0.62914]
[1748055088804,1.97121,2542.8,2542.6,0.62914]
[1748055090009,1.3421,2542.7,2542.6,0.62914]
[1748055091010,1.3421,2542.7,2542.6,0.62915]
[1748055092115,1.97123,2542.7,2542.6,1.38512988]
[1748055092306,1.3421,2542.7,2542.6,2.01427988]
[1748055093207,19.0391,2542.7,2542.6,2.01427988]
[1748055093513,17.697,2542.7,2542.6,3.34237988]
[1748055093712,17.697,2542.7,2542.6,3.99467988]
[1748055094115,16.71560354,2542.9,2542.8,0.6291]
[1748055094316,1.31460354,2542.9,2542.8,0.6291]
[1748055094617,0.00590354,2542.9,2542.8,3.8369]
[1748055095003,0.00590354,2542.9,2542.8,5.22202988]
[1748055095411,0.00590354,2542.9,2542.8,6.53512988]
[1748055096815,0.00590354,2542.9,2542.8,7.60854769]
[1748055099518,0.00590354,2542.9,2542.8,6.29544769]
[1748055099716,2.07420354,2542.9,2542.8,6.29544769]
[1748055100716,2.07420354,2542.9,2542.8,2.45854769]
[1748055100917,2.07420354,2542.9,2542.8,6.29544769]
[1748055101324,19.77020354,2542.9,2542.8,6.29544769]
[1748055101618,19.77020354,2542.9,2542.8,5.22202988]
[1748055102017,20.39928354,2542.9,2542.8,4.59292988]
[1748055102518,20.39928354,2542.9,2542.8,1.38512988]
[1748055103217,19.77020354,2542.9,2542.8,1.38512988]
[1748055103420,19.77020354,2542.9,2542.8,2.01422988]
[1748055106721,35.16620354,2542.9,2542.8,2.01422988]
[1748055108311,35.16620354,2542.9,2542.8,1.38512988]
[1748055108514,35.16620354,2542.9,2542.8,2.01422988]
[1748055110019,17.47020354,2542.9,2542.8,2.01422988]
[1748055110319,35.79528354,2542.9,2542.8,1.38512988]
[1748055111327,35.16620354,2542.9,2542.8,2.01422988]
[1748055116626,35.16620354,2542.9,2542.8,1.38512988]
[1748055117126,35.79528354,2542.9,2542.8,1.38512988]
[1748055117823,40.79528354,2542.9,2542.8,1.38512988]
[1748055118030,0.6292,2542.4,2542.3,1.0775935]
[1748055118237,0.62925,2542.2,2542.1,2.73908989]
[1748055118719,5.62925,2542.2,2542.1,2.73908989]
[1748055118920,6.93685,2542.2,2542.1,2.73908989]
[1748055119123,1.5732,2542.1,2541.6,2.57917877]
[1748055119319,0.6294,2541.6,2541.5,5.00948382]
[1748055119630,33.7214,2541.6,2541.5,5.00948382]
[1748055119824,41.3591,2541.6,2541.5,5.00948382]
[1748055120024,41.3591,2541.6,2541.5,3.94968382]
[1748055120426,0.62943,2541.5,2541.4,3.26616025]
[1748055120624,1.93703,2541.5,2541.4,3.26616025]
[1748055120825,6.93703,2541.5,2541.4,3.26616025]
[1748055121731,0.62945,2541.4,2541.3,3.79e-06]
[1748055122025,0.62955,2541.0,2540.9,0.8012923]
[1748055122219,36.93635,2541.0,2540.9,2.3e-06]
[1748055122532,41.93635,2541.0,2540.9,2.3e-06]
[1748055123522,8.83735,2541.0,2540.9,2.3e-06]
[1748055124224,36.94635,2541.0,2540.9,2.3e-06]
[1748055124930,33.73855,2541.0,2540.9,2.3e-06]
[1748055125123,33.109,2541.0,2540.9,2.3e-06]
[1748055125318,33.73855,2541.0,2540.9,2.3e-06]
[1748055125625,33.109,2541.0,2540.9,2.3e-06]
[1748055126134,33.73855,2541.0,2540.9,2.3e-06]
[1748055126324,33.73855,2541.0,2540.7,1.97201]
[1748055126525,33.73855,2541.0,2540.8,1.3424]
[1748055126733,33.73855,2541.0,2540.8,1.972]
[1748055127226,33.109,2541.0,2540.8,1.972]
[1748055127434,33.73856,2541.0,2540.8,1.972]
[1748055127632,33.109,2541.0,2540.8,1.3424]
[1748055127833,33.73855,2541.0,2540.8,1.97199]
[1748055128328,0.62954,2541.1,2540.8,1.97199]
[1748055128534,33.112,2541.0,2540.9,0.62957]
[1748055128833,33.74155,2541.0,2540.8,1.97198]
[1748055129429,33.112,2541.0,2540.8,1.97198]
[1748055129736,33.74156,2541.0,2540.8,1.97198]
[1748055129937,33.112,2541.0,2540.8,1.3424]
[1748055130528,0.62958,2540.9,2540.8,1.3424]
[1748055132035,33.112,2541.0,2540.8,1.3424]
[1748055132229,33.112,2540.9,2540.8,5.17979]
[1748055132536,33.112,2540.9,2540.8,4.5502]
[1748055132839,33.113,2540.9,2540.8,4.5502]
[1748055134638,33.74258,2540.9,2540.8,4.5502]
[1748055135131,33.113,2540.9,2540.8,4.5502]
[1748055136139,33.74258,2540.9,2540.8,4.5502]
[1748055136344,33.113,2540.9,2540.8,4.5502]
[1748055136837,33.74258,2540.9,2540.8,4.5502]
[1748055137244,33.113,2540.9,2540.8,4.5502]
[1748055137539,33.113,2540.9,2540.8,5.1798]
[1748055137941,33.113,2540.9,2540.8,4.5502]
[1748055138248,33.113,2540.9,2540.8,5.1798]
[1748055138845,33.74258,2540.9,2540.8,4.5502]
[1748055139039,33.74258,2540.9,2540.8,1.3424]
[1748055139451,33.113,2540.9,2540.8,1.3424]
[1748055139744,33.113,2540.9,2540.8,1.972]
[1748055141939,15.404,2540.9,2540.8,1.972]
[1748055142145,33.114,2540.9,2540.8,1.972]
[1748055143346,0.00590354,2541.2,2540.8,4.5502]
[1748055143540,33.12090354,2541.2,2541.1,0.62953]
[1748055144238,33.75040354,2541.2,2541.1,0.6451]
[1748055144542,35.05010354,2541.2,2541.1,0.6451]
[1748055146344,0.62953,2541.1,2541.0,0.6885]
[1748055146545,2.01423,2541.1,2541.0,0.6885]
[1748055149647,2.01423,2541.1,2541.0,1.31805]
[1748055151049,2.01423,2541.1,2541.0,0.6885]
[1748055151235,2.01423,2541.1,2540.8,3.83739]
[1748055151236,0.62958,2540.9,2540.8,3.2078]
[1748055151436,0.6296,2540.8,2540.7,1.27201]